[Event "Chinese Championship-B Men 2024"]
[Site "Liaocheng"]
[Date "2024.04.24"]
[Round "6.13"]
[White "Chen, Hongsen"]
[Black "Chen, Muxi"]
[Result "1-0"]
[WhiteElo "2171"]
[BlackElo "1828"]
[PlyCount "67"]
[EventDate "2024.04.24"]
[EventType "swiss"]
[EventCountry "CHN"]
[TimeControl "5400+30"]

1. d4 {[%emt 0:00:10]} d5 {[%emt 0:00:15]} 2. c4 {[%emt 0:00:10]} c6 {[%emt 0:00:16]} 3. Nf3 {[%emt 0:00:07]} Nf6 {[%emt 0:00:21]} 4. Qb3 {[%emt 0:00:08]} e6 {[%emt 0:05:47]} 5. g3 {[%emt 0:01:00]} Nbd7 {[%emt 0:07:54]} 6. Bg2 {[%emt 0:00:09]} Bd6 {[%emt 0:01:26]} 7. O-O {[%emt 0:00:34]} O-O {[%emt 0:01:43]} 8. Rd1 {[%emt 0:00:25]} Qe7 {[%emt 0:03:26]} 9. Nc3 {[%emt 0:04:57]} dxc4 {[%emt 0:08:52]} 10. Qxc4 {[%emt 0:00:06]} e5 {[%emt 0:00:53]} 11. e4 {[%emt 0:00:30]} exd4 {[%emt 0:04:29]} 12. Nxd4 {[%emt 0:00:47]} Ne5 {[%emt 0:01:17]} 13. Qf1 {[%emt 0:01:09]} Bc5 {[%emt 0:01:49]} 14. h3 {[%emt 0:01:07]} Bxd4 {[%emt 0:04:26]} 15. Rxd4 {[%emt 0:00:35]} Bxh3 {[%emt 0:02:52]} 16. Qe2 {[%emt 0:01:14]} Bxg2 {[%emt 0:01:17]} 17. Kxg2 {[%emt 0:00:06]} Rad8 {[%emt 0:03:30]} 18. Rxd8 {[%emt 0:14:13]} Rxd8 {[%emt 0:02:17]} 19. Bg5 {[%emt 0:10:59]} h6 {[%emt 0:06:20]} 20. Bxf6 Qxf6 {[%emt 0:00:08]} 21. f4 {[%emt 0:00:09]} Ng6 {[%emt 0:01:21]} 22. Rd1 {[%emt 0:03:59]} Qe7 {[%emt 0:11:31]} 23. e5 {[%emt 0:07:26]} Rxd1 {[%emt 0:02:31]} 24. Qxd1 {[%emt 0:00:08]} Qb4 {[%emt 0:01:12]} 25. Qd2 {[%emt 0:00:06]} Ne7 {[%emt 0:01:39]} 26. a3 {[%emt 0:00:51]} Qb6 {[%emt 0:04:04]} 27. b4 {[%emt 0:16:33]} Nf5 {[%emt 0:03:41]} 28. Qd7 {[%emt 0:01:10]} Ne3+ {[%emt 0:06:42]} 29. Kh3 {[%emt 0:03:12]} Nf1 {[%emt 0:03:38]} 30. Kg2 {[%emt 0:19:32]} Ne3+ {[%emt 0:00:31]} 31. Kf3 {[%emt 0:00:20]} Nc4 {[%emt 0:01:28]} 32. Nd1 {[%emt 0:02:08]} g6 {[%emt 0:04:50]} 33. e6 {[%emt 0:01:06]} Qg1 {[%emt 0:02:10]} 34. Nf2 {[%emt 0:00:26]} 1-0

[Event "Chinese Championship-B Men 2024"]
[Site "Liaocheng"]
[Date "2024.04.24"]
[Round "6.14"]
[White "Chan, Wang Ip Boris"]
[Black "Liu, Heyang"]
[Result "1/2-1/2"]
[WhiteElo "2011"]
[BlackElo "1776"]
[PlyCount "71"]
[EventDate "2024.04.24"]
[EventType "swiss"]
[EventCountry "CHN"]
[TimeControl "5400+30"]

1. e4 {[%emt 0:00:14]} c5 {[%emt 0:00:07]} 2. Nf3 {[%emt 0:00:07]} d6 {[%emt 0:00:05]} 3. d4 {[%emt 0:00:07]} cxd4 {[%emt 0:00:04]} 4. Nxd4 {[%emt 0:00:02]} Nf6 {[%emt 0:00:10]} 5. Nc3 {[%emt 0:00:05]} a6 {[%emt 0:00:05]} 6. Bg5 {[%emt 0:00:15]} e6 {[%emt 0:00:08]} 7. f4 {[%emt 0:00:05]} Be7 {[%emt 0:00:05]} 8. Qf3 {[%emt 0:00:05]} Qc7 {[%emt 0:00:07]} 9. O-O-O {[%emt 0:00:12]} Nbd7 {[%emt 0:00:07]} 10. f5 {[%emt 0:00:25]} e5 {[%emt 0:04:49]} 11. Nde2 {[%emt 0:00:28]} b5 {[%emt 0:00:49]} 12. Bxf6 {[%emt 0:00:12]} Nxf6 {[%emt 0:00:13]} 13. Nd5 {[%emt 0:00:33]} Nxd5 {[%emt 0:00:29]} 14. exd5 {[%emt 0:00:02]} Bb7 {[%emt 0:00:48]} 15. Ng3 {[%emt 0:00:27]} Rc8 {[%emt 0:01:50]} 16. c3 {[%emt 0:00:44]} Kd7 {[%emt 0:17:50]} 17. Qg4 {[%emt 0:15:40]} Bf6 {[%emt 0:00:12]} 18. Ne4 {[%emt 0:05:25]} Qb6 {[%emt 0:02:58]} 19. Qf3 {[%emt 0:03:44]} h6 {[%emt 0:02:50]} 20. Kb1 {[%emt 0:01:29]} Kc7 {[%emt 0:09:31]} 21. g4 {[%emt 0:07:21]} Bg5 {[%emt 0:08:41]} 22. Be2 {[%emt 0:07:26]} Bf4 {[%emt 0:01:00]} 23. h4 {[%emt 0:56:52]} Qe3 {[%emt 0:06:20]} 24. Qg2 {[%emt 0:00:00]} Qb6 {[%emt 0:04:01]} 25. Rh3 {[%emt 0:00:00]} Kb8 {[%emt 0:01:40]} 26. Qf3 {[%emt 0:00:00]} f6 {[%emt 0:05:35]} 27. Qd3 {[%emt 0:00:00]} Rcd8 {[%emt 0:05:31]} 28. Qc2 {[%emt 0:00:00]} Rc8 {[%emt 0:17:35]} 29. Qb3 {[%emt 0:00:00]} Rc5 {[%emt 0:06:10]} 30. a4 {[%emt 0:03:30]} Rhc8 {[%emt 0:00:54]} 31. axb5 {[%emt 0:00:00]} axb5 {[%emt 0:00:23]} 32. Nxc5 {[%emt 0:00:00]} Rxc5 {[%emt 0:00:07]} 33. Rhd3 {[%emt 0:00:00]} Kc7 {[%emt 0:02:04]} 34. Rf3 {[%emt 0:00:00]} Qa5 {[%emt 0:01:01]} 35. Rfd3 {[%emt 0:00:00]} Qb6 {[%emt 0:00:15]} 36. Rf3 {[%emt 0:00:00]} 1/2-1/2

[Event "Chinese Championship-B Men 2024"]
[Site "Liaocheng"]
[Date "2024.04.24"]
[Round "6.15"]
[White "Wang, Zihang"]
[Black "Zhang, Zhi"]
[Result "1/2-1/2"]
[WhiteElo "1846"]
[BlackElo "1987"]
[PlyCount "75"]
[EventDate "2024.04.24"]
[EventType "swiss"]
[EventCountry "CHN"]
[TimeControl "5400+30"]

1. e4 {[%emt 0:00:30]} e6 {[%emt 0:00:30]} 2. d4 {[%emt 0:00:30]} d5 {[%emt 0:00:30]} 3. exd5 {[%emt 0:00:30]} exd5 {[%emt 0:00:30]} 4. Bd3 {[%emt 0:00:20]} Bd6 {[%emt 0:00:18]} 5. Nc3 {[%emt 0:00:50]} c6 {[%emt 0:03:09]} 6. Qf3 {[%emt 0:00:35]} Qf6 {[%emt 0:01:41]} 7. Nce2 {[%emt 0:00:54]} Qxf3 {[%emt 0:01:12]} 8. Nxf3 {[%emt 0:00:12]} Ne7 {[%emt 0:00:10]} 9. Bf4 {[%emt 0:01:02]} Bxf4 {[%emt 0:00:35]} 10. Nxf4 {[%emt 0:00:07]} Bf5 {[%emt 0:00:20]} 11. O-O {[%emt 0:05:30]} Bxd3 {[%emt 0:02:52]} 12. Nxd3 {[%emt 0:00:09]} Nd7 {[%emt 0:04:02]} 13. Rfe1 {[%emt 0:03:38]} f6 {[%emt 0:01:16]} 14. a4 {[%emt 0:11:45]} a5 {[%emt 0:01:37]} 15. Nc5 {[%emt 0:11:32]} Ra7 {[%emt 0:15:05]} 16. h4 {[%emt 0:23:32]} b6 {[%emt 0:10:56]} 17. Ne6 {[%emt 0:01:35]} g6 {[%emt 0:00:11]} 18. Re2 {[%emt 0:00:37]} Kf7 {[%emt 0:03:38]} 19. Rae1 {[%emt 0:00:55]} Nf5 {[%emt 0:03:09]} 20. Nf4 {[%emt 0:08:15]} h5 {[%emt 0:01:47]} 21. g3 {[%emt 0:01:36]} Rb8 {[%emt 0:02:17]} 22. b3 {[%emt 0:05:30]} b5 {[%emt 0:05:04]} 23. axb5 {[%emt 0:02:00]} Rxb5 {[%emt 0:00:02]} 24. Re8 {[%emt 0:01:52]} Rb8 {[%emt 0:08:29]} 25. Rxb8 {[%emt 0:00:15]} Nxb8 {[%emt 0:00:01]} 26. Ra1 {[%emt 0:04:24]} Nd6 {[%emt 0:03:24]} 27. Ra4 {[%emt 0:05:20]} Nb5 {[%emt 0:02:36]} 28. b4 {[%emt 0:05:54]} axb4 {[%emt 0:00:08]} 29. Rxb4 {[%emt 0:00:03]} Ra1+ {[%emt 0:00:38]} 30. Kg2 {[%emt 0:00:15]} Na6 {[%emt 0:00:08]} 31. Rb2 {[%emt 0:02:21]} Nac7 {[%emt 0:00:02]} 32. Nd3 {[%emt 0:01:21]} Ne6 {[%emt 0:02:46]} 33. Nb4 {[%emt 0:01:12]} Nexd4 {[%emt 0:02:27]} 34. Nxd4 {[%emt 0:01:24]} Nxd4 {[%emt 0:00:01]} 35. c3 {[%emt 0:00:06]} Nb5 {[%emt 0:07:26]} 36. Nxd5 {[%emt 0:00:21]} Rc1 {[%emt 0:00:04]} 37. Nb4 {[%emt 0:00:35]} Rxc3 {[%emt 0:03:21]} 38. Nxc6 {[%emt 0:00:09]} 1/2-1/2

[Event "Chinese Championship-B Men 2024"]
[Site "Liaocheng"]
[Date "2024.04.24"]
[Round "7.1"]
[White "Xie, Kaifan"]
[Black "Zhang, Ziji"]
[Result "1/2-1/2"]
[WhiteElo "2393"]
[BlackElo "2392"]
[PlyCount "45"]
[EventDate "2024.04.24"]
[EventType "swiss"]
[EventCountry "CHN"]
[TimeControl "5400+30"]

1. d4 {[%emt 0:00:09]} d5 {[%emt 0:00:20]} 2. c4 {[%emt 0:00:09]} c6 {[%emt 0:00:15]} 3. Nf3 {[%emt 0:00:16]} Nf6 {[%emt 0:00:13]} 4. Nc3 {[%emt 0:00:07]} dxc4 {[%emt 0:00:52]} 5. a4 {[%emt 0:00:11]} e6 {[%emt 0:02:01]} 6. e3 {[%emt 0:00:08]} c5 {[%emt 0:00:26]} 7. Bxc4 {[%emt 0:00:06]} Nc6 {[%emt 0:00:08]} 8. O-O {[%emt 0:00:27]} Be7 {[%emt 0:01:50]} 9. Qe2 {[%emt 0:00:55]} O-O {[%emt 0:00:57]} 10. Rd1 {[%emt 0:00:45]} Qc7 {[%emt 0:01:34]} 11. e4 {[%emt 0:21:19]} cxd4 {[%emt 0:00:47]} 12. Nxd4 {[%emt 0:21:01]} Nxd4 {[%emt 0:11:56]} 13. Rxd4 {[%emt 0:00:03]} e5 {[%emt 0:00:29]} 14. Rd1 {[%emt 0:00:54]} Bc5 {[%emt 0:00:45]} 15. Nd5 {[%emt 0:09:00]} Nxd5 {[%emt 0:18:10]} 16. Bxd5 {[%emt 0:00:07]} Be6 {[%emt 0:00:42]} 17. Be3 {[%emt 0:06:07]} Bxe3 {[%emt 0:03:26]} 18. Qxe3 {[%emt 0:00:02]} Bxd5 {[%emt 0:00:12]} 19. Rxd5 {[%emt 0:00:01]} Rfd8 {[%emt 0:00:21]} 20. Rc5 {[%emt 0:00:17]} Qd6 {[%emt 0:01:51]} 21. Rd5 {[%emt 0:01:56]} Qc7 {[%emt 0:00:04]} 22. Rc5 {[%emt 0:00:04]} Qd6 {[%emt 0:00:04]} 23. Rd5 {[%emt 0:00:04]} 1/2-1/2

[Event "Chinese Championship-B Men 2024"]
[Site "Liaocheng"]
[Date "2024.04.24"]
[Round "7.2"]
[White "Zhang, Di"]
[Black "Meng, Yihan"]
[Result "1-0"]
[WhiteElo "2303"]
[BlackElo "2042"]
[PlyCount "77"]
[EventDate "2024.04.24"]
[EventType "swiss"]
[EventCountry "CHN"]
[TimeControl "5400+30"]

1. e4 {[%emt 0:00:14]} e5 {[%emt 0:00:09]} 2. Nf3 {[%emt 0:00:18]} Nf6 {[%emt 0:00:06]} 3. Nc3 {[%emt 0:00:43]} Nc6 {[%emt 0:00:09]} 4. Bb5 {[%emt 0:00:29]} Nd4 {[%emt 0:00:13]} 5. O-O {[%emt 0:00:37]} c6 {[%emt 0:03:38]} 6. Bd3 {[%emt 0:00:19]} Nxf3+ {[%emt 0:03:21]} 7. Qxf3 {[%emt 0:00:09]} Bc5 {[%emt 0:00:31]} 8. Be2 {[%emt 0:11:55]} d6 {[%emt 0:37:09]} 9. d3 {[%emt 0:01:40]} Bg4 {[%emt 0:01:52]} 10. Qg3 {[%emt 0:00:35]} Qd7 {[%emt 0:00:47]} 11. Be3 {[%emt 0:11:45]} Bxe3 {[%emt 0:04:21]} 12. Qxe3 {[%emt 0:09:55]} Bxe2 {[%emt 0:14:51]} 13. Qxe2 {[%emt 0:05:57]} Qg4 {[%emt 0:03:54]} 14. Qxg4 {[%emt 0:06:58]} Nxg4 {[%emt 0:00:05]} 15. a4 {[%emt 0:00:40]} Ke7 {[%emt 0:07:09]} 16. Rfd1 {[%emt 0:04:38]} Nf6 {[%emt 0:02:18]} 17. d4 {[%emt 0:00:31]} Nd7 {[%emt 0:00:34]} 18. f3 {[%emt 0:04:41]} a5 {[%emt 0:00:40]} 19. Rd3 {[%emt 0:01:29]} Rhf8 {[%emt 0:00:42]} 20. Re1 {[%emt 0:06:45]} Rad8 {[%emt 0:04:23]} 21. Nd1 {[%emt 0:01:42]} Nb6 {[%emt 0:08:56]} 22. b3 {[%emt 0:00:58]} g6 {[%emt 0:00:29]} 23. g4 {[%emt 0:02:44]} c5 {[%emt 0:01:44]} 24. dxc5 {[%emt 0:09:34]} dxc5 {[%emt 0:00:01]} 25. Rc3 {[%emt 0:00:01]} c4 {[%emt 0:00:16]} 26. Ne3 {[%emt 0:00:13]} Rd4 {[%emt 0:02:38]} 27. Rb1 {[%emt 0:04:17]} cxb3 {[%emt 0:01:44]} 28. Rbxb3 {[%emt 0:06:48]} Nxa4 {[%emt 0:00:32]} 29. Rxb7+ {[%emt 0:00:06]} Kf6 {[%emt 0:00:40]} 30. Rc6+ {[%emt 0:01:07]} Kg5 {[%emt 0:00:06]} 31. Kf2 {[%emt 0:01:50]} h5 {[%emt 0:01:05]} 32. gxh5 {[%emt 0:00:54]} Kxh5 {[%emt 0:00:12]} 33. Kg3 {[%emt 0:00:36]} Rd2 {[%emt 0:01:01]} 34. Rb5 {[%emt 0:01:00]} f5 {[%emt 0:00:33]} 35. Rxe5 {[%emt 0:00:34]} Re2 {[%emt 0:00:29]} 36. Nd5 {[%emt 0:00:30]} g5 {[%emt 0:00:23]} 37. Nf6+ {[%emt 0:00:43]} Rxf6 {[%emt 0:00:28]} 38. Rxf6 {[%emt 0:00:02]} fxe4 {[%emt 0:00:29]} 39. Ree6 {[%emt 0:00:29]} 1-0

[Event "Chinese Championship-B Men 2024"]
[Site "Liaocheng"]
[Date "2024.04.24"]
[Round "7.3"]
[White "Wu, Yixing"]
[Black "Wang, Hao B"]
[Result "1/2-1/2"]
[WhiteElo "2348"]
[BlackElo "2170"]
[PlyCount "133"]
[EventDate "2024.04.24"]
[EventType "swiss"]
[EventCountry "CHN"]
[TimeControl "5400+30"]

1. Nf3 {[%emt 0:00:04]} d5 {[%emt 0:00:13]} 2. d4 {[%emt 0:00:25]} Nf6 {[%emt 0:00:20]} 3. c4 {[%emt 0:00:29]} e6 {[%emt 0:00:44]} 4. Nc3 {[%emt 0:00:18]} c6 {[%emt 0:00:45]} 5. Qd3 {[%emt 0:00:18]} Nbd7 {[%emt 0:01:56]} 6. g3 {[%emt 0:01:00]} Be7 {[%emt 0:07:50]} 7. Bg2 {[%emt 0:00:10]} O-O {[%emt 0:00:08]} 8. O-O {[%emt 0:00:31]} b6 {[%emt 0:00:39]} 9. e4 {[%emt 0:00:14]} Ba6 {[%emt 0:00:55]} 10. b3 {[%emt 0:06:16]} dxc4 {[%emt 0:01:20]} 11. bxc4 {[%emt 0:01:39]} Rc8 {[%emt 0:00:09]} 12. Rd1 {[%emt 0:07:00]} h6 {[%emt 0:05:44]} 13. Bf4 {[%emt 0:04:23]} Re8 {[%emt 0:04:34]} 14. Bf1 {[%emt 0:03:35]} Nf8 {[%emt 0:03:11]} 15. Qc2 {[%emt 0:02:47]} Bb7 {[%emt 0:05:13]} 16. Bg2 {[%emt 0:02:37]} Ng6 {[%emt 0:00:36]} 17. Be3 {[%emt 0:00:22]} Qc7 {[%emt 0:01:38]} 18. h3 {[%emt 0:06:58]} Red8 {[%emt 0:07:06]} 19. Qa4 {[%emt 0:07:47]} a6 {[%emt 0:02:19]} 20. Qb3 {[%emt 0:03:03]} b5 {[%emt 0:01:19]} 21. c5 {[%emt 0:04:17]} e5 {[%emt 0:06:18]} 22. Nxe5 {[%emt 0:03:02]} Nxe5 {[%emt 0:00:12]} 23. dxe5 {[%emt 0:00:04]} Qxe5 {[%emt 0:00:08]} 24. f4 {[%emt 0:00:26]} Qe6 {[%emt 0:00:10]} 25. e5 {[%emt 0:01:29]} Nd5 {[%emt 0:04:04]} 26. Bf2 {[%emt 0:01:31]} g5 {[%emt 0:02:28]} 27. fxg5 {[%emt 0:08:48]} Qxe5 {[%emt 0:09:51]} 28. Ne4 {[%emt 0:09:14]} hxg5 {[%emt 0:02:04]} 29. Bd4 {[%emt 0:00:05]} Qe6 {[%emt 0:00:47]} 30. Rf1 {[%emt 0:01:47]} Nf4 {[%emt 0:05:50]} 31. Qxe6 {[%emt 0:06:25]} Nxe6 {[%emt 0:00:53]} 32. Bf6 {[%emt 0:00:04]} Rc7 {[%emt 0:01:25]} 33. Bxe7 {[%emt 0:01:18]} Rxe7 {[%emt 0:00:04]} 34. Rf5 {[%emt 0:00:06]} Rd3 {[%emt 0:01:43]} 35. Raf1 {[%emt 0:00:31]} Bc8 {[%emt 0:02:54]} 36. Kh2 {[%emt 0:02:09]} Bd7 {[%emt 0:02:15]} 37. R1f2 {[%emt 0:06:23]} a5 {[%emt 0:07:14]} 38. Nf6+ {[%emt 0:02:48]} Kg7 {[%emt 0:00:39]} 39. Nxd7 {[%emt 0:00:22]} Rdxd7 {[%emt 0:00:50]} 40. Bxc6 {[%emt 0:00:07]} Rc7 {[%emt 0:00:03]} 41. Bd5 {[%emt 0:02:54]} Nxc5 {[%emt 0:00:14]} 42. Rxg5+ {[%emt 0:00:01]} Kf8 {[%emt 0:00:08]} 43. h4 {[%emt 0:00:15]} Nd3 {[%emt 0:01:01]} 44. Rd2 {[%emt 0:00:54]} Ne5 {[%emt 0:01:08]} 45. Bg2 {[%emt 0:00:54]} Re6 {[%emt 0:00:33]} 46. Kh3 {[%emt 0:00:54]} Rc3 {[%emt 0:01:23]} 47. h5 {[%emt 0:01:49]} b4 {[%emt 0:01:57]} 48. Bd5 {[%emt 0:01:21]} f6 {[%emt 0:06:03]} 49. Bxe6 {[%emt 0:01:53]} fxg5 {[%emt 0:00:05]} 50. h6 {[%emt 0:00:11]} Ng6 {[%emt 0:00:45]} 51. Kg4 {[%emt 0:02:08]} Ke7 {[%emt 0:00:10]} 52. Bf5 {[%emt 0:01:24]} Ne5+ {[%emt 0:01:02]} 53. Kxg5 {[%emt 0:00:40]} Nf7+ {[%emt 0:00:03]} 54. Kf4 {[%emt 0:00:40]} Rc4+ {[%emt 0:00:05]} 55. Kf3 {[%emt 0:00:24]} Nxh6 {[%emt 0:00:06]} 56. Bc2 {[%emt 0:00:13]} Nf7 {[%emt 0:00:26]} 57. Re2+ {[%emt 0:00:49]} Kf6 {[%emt 0:00:13]} 58. Bb3 {[%emt 0:00:06]} Ng5+ {[%emt 0:00:19]} 59. Kg2 {[%emt 0:00:14]} Rd4 {[%emt 0:00:34]} 60. Rc2 {[%emt 0:00:30]} Ne4 {[%emt 0:00:28]} 61. Kf3 {[%emt 0:01:15]} Ke5 {[%emt 0:00:23]} 62. Re2 {[%emt 0:00:34]} Rd3+ {[%emt 0:00:07]} 63. Re3 {[%emt 0:00:13]} Rxe3+ {[%emt 0:00:05]} 64. Kxe3 {[%emt 0:00:02]} Nxg3 {[%emt 0:00:06]} 65. Kd3 {[%emt 0:00:04]} Ne4 {[%emt 0:00:38]} 66. Kc4 {[%emt 0:00:03]} Nd6+ {[%emt 0:00:04]} 67. Kc5 {[%emt 0:00:02]} 1/2-1/2

[Event "Chinese Championship-B Men 2024"]
[Site "Liaocheng"]
[Date "2024.04.24"]
[Round "7.4"]
[White "Chen, Zimu(Js)"]
[Black "Xi, Qi"]
[Result "1/2-1/2"]
[WhiteElo "2075"]
[BlackElo "2217"]
[PlyCount "62"]
[EventDate "2024.04.24"]
[EventType "swiss"]
[EventCountry "CHN"]
[TimeControl "5400+30"]

1. Nf3 {[%emt 0:00:31]} d5 {[%emt 0:03:21]} 2. g3 {[%emt 0:01:16]} Nf6 {[%emt 0:00:18]} 3. Bg2 {[%emt 0:00:09]} c6 {[%emt 0:00:25]} 4. O-O {[%emt 0:00:23]} Bg4 {[%emt 0:00:40]} 5. h3 {[%emt 0:03:39]} Bh5 {[%emt 0:00:59]} 6. d3 {[%emt 0:03:26]} e6 {[%emt 0:00:44]} 7. Nbd2 {[%emt 0:00:44]} Be7 {[%emt 0:00:32]} 8. e4 {[%emt 0:00:49]} O-O {[%emt 0:01:07]} 9. Re1 {[%emt 0:04:51]} a5 {[%emt 0:02:06]} 10. g4 {[%emt 0:03:15]} Bg6 {[%emt 0:00:05]} 11. Ne5 {[%emt 0:00:10]} dxe4 {[%emt 0:11:43]} 12. Nxg6 {[%emt 0:00:42]} hxg6 {[%emt 0:00:09]} 13. dxe4 {[%emt 0:06:38]} e5 {[%emt 0:09:49]} 14. Nc4 {[%emt 0:00:58]} Qc7 {[%emt 0:00:46]} 15. a4 {[%emt 0:04:08]} Nbd7 {[%emt 0:06:48]} 16. g5 {[%emt 0:01:07]} Nh5 {[%emt 0:02:10]} 17. Bf3 {[%emt 0:01:50]} Nf4 {[%emt 0:00:29]} 18. Bxf4 {[%emt 0:00:08]} exf4 {[%emt 0:00:05]} 19. e5 {[%emt 0:00:04]} Bxg5 {[%emt 0:02:38]} 20. e6 {[%emt 0:06:37]} fxe6 {[%emt 0:08:43]} 21. Qd3 {[%emt 0:05:22]} Rfe8 {[%emt 0:17:17]} 22. Qxg6 {[%emt 0:02:35]} Bf6 {[%emt 0:00:13]} 23. Rad1 {[%emt 0:03:37]} Nf8 {[%emt 0:00:13]} 24. Qh5 {[%emt 0:06:38]} Re7 {[%emt 0:02:07]} 25. c3 {[%emt 0:09:18]} g6 {[%emt 0:00:50]} 26. Qg4 {[%emt 0:00:05]} Rh7 {[%emt 0:08:42]} 27. Nd6 {[%emt 0:00:40]} Rh4 {[%emt 0:00:50]} 28. Qg2 {[%emt 0:00:04]} Bg7 {[%emt 0:03:26]} 29. Bg4 {[%emt 0:02:24]} e5 {[%emt 0:00:20]} 30. Ne4 {[%emt 0:01:16]} Qe7 {[%emt 0:03:58]} 31. Rd6 {[%emt 0:00:41]} Rh6 {[%emt 0:00:58]} 1/2-1/2

[Event "Chinese Championship-B Men 2024"]
[Site "Liaocheng"]
[Date "2024.04.24"]
[Round "7.5"]
[White "Xu, Wei"]
[Black "Jiang, Haochen"]
[Result "1/2-1/2"]
[WhiteElo "2047"]
[BlackElo "2381"]
[PlyCount "69"]
[EventDate "2024.04.24"]
[EventType "swiss"]
[EventCountry "CHN"]
[TimeControl "5400+30"]

1. d4 {[%emt 0:04:30]} d5 {[%emt 0:04:58]} 2. c4 {[%emt 0:00:14]} e6 {[%emt 0:00:12]} 3. Nc3 {[%emt 0:00:05]} Be7 {[%emt 0:01:06]} 4. Nf3 {[%emt 0:00:10]} Nf6 {[%emt 0:00:45]} 5. Bg5 {[%emt 0:00:24]} O-O {[%emt 0:00:30]} 6. e3 {[%emt 0:00:04]} h6 {[%emt 0:00:11]} 7. Bh4 {[%emt 0:00:36]} b6 {[%emt 0:02:46]} 8. cxd5 {[%emt 0:00:10]} Nxd5 {[%emt 0:00:26]} 9. Nxd5 {[%emt 0:00:12]} Bxh4 {[%emt 0:01:31]} 10. Nxc7 {[%emt 0:06:16]} Bxf2+ {[%emt 0:01:49]} 11. Kxf2 {[%emt 0:00:12]} Qxc7 {[%emt 0:00:06]} 12. Rc1 {[%emt 0:00:06]} Qe7 {[%emt 0:09:53]} 13. Qc2 {[%emt 0:00:48]} Nd7 {[%emt 0:10:57]} 14. Qc7 {[%emt 0:27:20]} Qb4 {[%emt 0:09:31]} 15. Bd3 {[%emt 0:03:12]} Nf6 {[%emt 0:12:04]} 16. Qc3 {[%emt 0:00:33]} Qa4 {[%emt 0:08:28]} 17. Qc6 {[%emt 0:02:52]} Ng4+ {[%emt 0:08:15]} 18. Ke2 {[%emt 0:00:36]} Qxa2 {[%emt 0:00:49]} 19. Qxa8 {[%emt 0:03:49]} Qxb2+ {[%emt 0:10:27]} 20. Nd2 {[%emt 0:00:15]} Ba6 {[%emt 0:02:05]} 21. Qe4 {[%emt 0:00:30]} Nf6 {[%emt 0:01:01]} 22. Qc6 {[%emt 0:07:10]} Bxd3+ {[%emt 0:01:05]} 23. Kxd3 {[%emt 0:00:06]} Nd5 {[%emt 0:00:12]} 24. Qa4 {[%emt 0:02:01]} Nb4+ {[%emt 0:01:06]} 25. Ke2 {[%emt 0:00:19]} Na2 {[%emt 0:00:15]} 26. Rc2 {[%emt 0:20:59]} Nc3+ {[%emt 0:00:08]} 27. Rxc3 {[%emt 0:00:02]} Qxc3 {[%emt 0:00:01]} 28. Qxa7 {[%emt 0:00:14]} Qc6 {[%emt 0:00:09]} 29. Rf1 {[%emt 0:09:15]} Qxg2+ {[%emt 0:05:14]} 30. Rf2 {[%emt 0:00:02]} Qg4+ {[%emt 0:00:23]} 31. Kf1 {[%emt 0:00:32]} Qh3+ {[%emt 0:01:30]} 32. Ke2 {[%emt 0:00:32]} Qh5+ {[%emt 0:00:09]} 33. Ke1 {[%emt 0:04:27]} Rc8 {[%emt 0:02:17]} 34. Qa3 {[%emt 0:00:20]} Qd5 {[%emt 0:02:15]} 35. Qa6 {[%emt 0:02:15]} 1/2-1/2